bitfinex/quotes_SOLUSD_20240822
["timestamp","ask_amount","ask_price","bid_price","bid_amount"]
[1724290577361,0.4383056,143.35,143.3,1.52084969]
[1724290577971,0.4383056,143.35,143.31,0.12549]
[1724290579767,0.4383056,143.35,143.3,45.12549]
[1724290579768,0.4383056,143.35,143.3,0.12549]
[1724290579942,0.4383056,143.35,143.3,0.25098]
[1724290580140,0.4383056,143.35,143.3,0.12549]
[1724290584285,11.79,143.34,143.29,15.1659]
[1724290585487,11.79,143.32,143.25,22.588]
[1724290586573,18.7677,143.32,143.25,22.588]
[1724290586773,11.79,143.3,143.25,15.9362]
[1724290587978,11.79,143.3,143.22,15.879]
[1724290588180,11.79,143.3,143.23,0.25098]
[1724290590385,11.79,143.3,143.23,1.64701078]
[1724290593311,11.79,143.3,143.23,0.25098]
[1724290594409,11.79,143.3,143.23,1.64698762]
[1724290594609,11.79,143.3,143.23,0.25098]
[1724290595112,22.992,143.32,143.23,0.25098]
[1724290595414,11.79,143.3,143.23,45.25098]
[1724290596721,11.79,143.3,143.23,0.25098]
[1724290598180,11.79,143.3,143.23,46.64699141]
[1724290598691,22.9919,143.32,143.23,58.43699141]
[1724290598692,34.7819,143.32,143.23,58.43699141]
[1724290600837,34.7819,143.32,143.23,57.04098]
[1724290601126,34.7819,143.32,143.23,45.25098]
[1724290601718,11.79,143.3,143.23,0.25098]
[1724290602891,34.7819,143.32,143.23,58.43697559]
[1724290603089,16.0145,143.32,143.23,58.43697559]
[1724290603307,11.79,143.32,143.23,58.43697559]
[1724290603694,18.7664,143.34,143.25,11.79]
[1724290603898,20.0,143.33,143.26,0.25098]
[1724290604718,11.79,143.32,143.26,0.12549]
[1724290604901,11.79,143.32,143.23,45.0]
[1724290605099,11.79,143.3,143.24,0.25098]
[1724290605300,11.79,143.3,143.22,27.669]
[1724290605533,11.79,143.3,143.23,20.0]
[1724290606627,11.79,143.3,143.24,0.25098]
[1724290608138,11.79,143.3,143.22,15.879]
[1724290608350,11.79,143.28,143.22,15.879]
[1724290610019,11.79,143.28,143.21,6.25099]
[1724290610237,11.79,143.28,143.22,0.25098]
[1724290614654,11.79,143.28,143.22,1.64717531]
[1724290615428,11.79,143.28,143.22,0.25098]
[1724290617131,11.79,143.28,143.21,20.25098]
[1724290623849,19.08567318,143.3,143.22,1.3961928]
[1724290624143,11.79,143.3,143.23,0.25098]
[1724290625560,11.79,143.3,143.23,1.64705647]
[1724290625863,16.5026,143.31,143.23,46.64705647]
[1724290627274,16.5026,143.31,143.23,45.25098]
[1724290636761,16.5026,143.31,143.24,13.18586419]
[1724290637080,7.29567214,143.32,143.25,45.25098]
[1724290638085,11.79,143.31,143.25,0.25098]
[1724290638378,11.79,143.31,143.24,45.25098]
[1724290639867,11.79,143.31,143.24,0.25098]
[1724290641385,11.79,143.31,143.24,1.64692299]
[1724290641552,11.79,143.31,143.24,0.25098]
[1724290641753,11.79,143.31,143.24,1.64691569]
[1724290643187,34.27581048,143.33,143.24,1.64691569]
[1724290643359,11.79,143.32,143.24,1.64691569]
[1724290644457,11.79,143.32,143.24,0.25098]
[1724290649897,11.79,143.3,143.24,0.25098]
[1724290650185,11.79,143.28,143.21,20.0]
[1724290650563,11.79,143.28,143.2,15.4479]
[1724290651872,11.79,143.28,143.21,20.0]
[1724290652566,11.79,143.28,143.22,0.25098]
[1724290652966,6.9787,143.3,143.22,1.64718815]
[1724290652967,11.79,143.3,143.22,1.64718815]
[1724290653794,11.79,143.24,143.16,15.9828]
[1724290653988,11.79,143.22,143.16,15.9828]
[1724290654463,11.79,143.2,143.12,15.9828]
[1724290654667,11.79,143.18,143.12,15.9828]
[1724290656061,13.2922,143.21,143.12,15.9828]
[1724290656262,11.79,143.18,143.12,15.9828]
[1724290656573,49.56,143.2,143.12,15.9828]
[1724290660410,49.56,143.2,143.13,1.39713446]
[1724290660588,49.56,143.2,143.12,15.9828]
[1724290660791,49.56,143.2,143.13,0.25098]
[1724290661302,49.56,143.2,143.12,15.9828]
[1724290661893,29.56,143.18,143.12,15.9828]
[1724290662193,29.56,143.18,143.11,6.4385]
[1724290662592,29.56,143.16,143.09,15.1527]
[1724290663104,29.56,143.14,143.07,6.0463]
[1724290663304,29.56,143.12,143.05,15.6406]
[1724290663710,29.56,143.1,143.04,6.2141]
[1724290663876,29.56,143.1,143.01,15.6406]
[1724290663877,29.56,143.1,143.01,21.8547]
[1724290666197,29.56,143.1,143.02,20.25098]
[1724290666395,29.56,143.08,143.02,20.0]
[1724290666694,29.56,143.08,143.01,21.8547]
[1724290667887,29.56,143.1,143.02,0.12549]
[1724290668209,20.0,143.09,143.02,0.25098]
[1724290670401,29.56,143.08,143.02,0.25098]
[1724290670604,22.2751,143.07,142.99,0.4098132]
[1724290670807,20.0,143.06,142.99,0.4098132]
[1724290672095,20.0,143.06,143.0,0.25098]
[1724290672581,6.9881,143.1,143.0,0.25098]
[1724290672787,20.0,143.09,143.0,0.25098]
[1724290673597,26.9887,143.09,143.0,0.25098]
[1724290674790,29.56,143.08,143.0,0.25098]
[1724290675104,20.0,143.07,142.99,0.4098132]
[1724290675697,29.56,143.06,142.99,0.4098132]
[1724290677213,20.0,143.07,142.99,0.4098132]
[1724290680213,20.0,143.07,143.0,0.25098]
[1724290684728,31.84,143.07,143.0,7.90198633]
[1724290685020,20.0,143.07,143.0,18.34378]
[1724290686626,20.0,143.07,143.01,1.3981687]
[1724290686833,31.84,143.07,143.02,0.25098]
[1724290687031,31.84,143.07,143.0,6.50378]
[1724290692537,31.84,143.07,143.01,1.39834136]
[1724290692908,31.84,143.07,143.0,6.50378]
[1724290693611,7.29933959,143.06,143.0,6.50378]
[1724290695737,7.29933959,143.06,143.0,7.90214659]
[1724290697322,7.29933959,143.06,143.01,15.1077]
[1724290697515,20.0,143.07,143.02,1.52368274]
[1724290697715,20.0,143.08,143.02,1.52368274]
[1724290703224,20.0,143.08,143.02,0.12549]
[1724290705334,20.0,143.08,143.02,1.52368709]
[1724290707540,7.29992608,143.09,143.02,1.52368709]
[1724290707724,7.29992608,143.09,143.03,0.12549]
[1724290707923,18.8271,143.12,143.03,0.12549]
[1724290709327,20.0,143.11,143.03,0.12549]
[1724290710037,11.84,143.1,143.03,0.12549]
[1724290710641,11.84,143.1,143.03,1.52344596]
[1724290710823,11.84,143.1,143.04,0.12549]
[1724290711025,11.84,143.1,143.03,0.12549]
[1724290713140,11.84,143.09,143.03,0.12549]
[1724290713541,31.84,143.11,143.03,0.12549]
[1724290714361,7.29867569,143.13,143.04,18.0131]
[1724290714524,11.84,143.14,143.06,11.84]
[1724290714726,11.84,143.14,143.07,1.64857056]
[1724290715054,7.29708949,143.15,143.08,13.23757024]
[1724290715258,7.29708949,143.15,143.09,0.25098]
[1724290715549,7.29708949,143.15,143.1,15.5334]
[1724290715750,11.84,143.16,143.11,1.39733829]
[1724290716225,7.29628588,143.17,143.11,1.39733829]
[1724290717455,20.0,143.16,143.11,1.39733829]
[1724290717633,7.29628588,143.17,143.11,1.39733829]
[1724290717840,11.84,143.18,143.11,1.39733829]
[1724290718434,11.84,143.18,143.12,0.25098]
[1724290719132,7.29559073,143.19,143.12,0.25098]
[1724290719333,7.29559073,143.19,143.12,1.64810961]
[1724290721026,11.84,143.2,143.12,1.64810961]
[1724290721248,7.29456449,143.19,143.12,0.25098]
[1724290721448,14.27826449,143.19,143.12,0.25098]
[1724290721633,11.84,143.18,143.12,0.25098]
[1724290724330,11.84,143.18,143.11,20.25098]
[1724290725360,18.8246,143.18,143.1,15.5334]
[1724290725562,11.84,143.16,143.1,15.5334]
[1724290728136,18.8246,143.18,143.11,1.52283835]
[1724290728337,11.84,143.18,143.11,1.52283835]
[1724290729258,11.84,143.18,143.11,1.48930039]
[1724290729643,11.84,143.18,143.11,0.09195204]
[1724290729846,11.84,143.18,143.11,0.21744204]
[1724290730654,11.84,143.18,143.11,1.61470279]
[1724290731254,11.84,143.18,143.11,0.21744204]
[1724290732072,18.8243,143.18,143.11,0.21744204]
[1724290732380,11.84,143.16,143.11,0.21744204]
[1724290742191,11.84,143.16,143.1,15.5334]
[1724290742396,11.84,143.14,143.1,15.5334]
[1724290752098,11.84,143.14,143.09,6.1731]
[1724290752472,6.9852,143.16,143.09,6.1731]
[1724290752812,11.84,143.15,143.09,6.1731]
[1724290753602,11.84,143.15,143.1,1.39751813]
[1724290753898,11.84,143.18,143.1,13.23751813]
[1724290754081,20.0,143.17,143.11,0.25098]
[1724290754592,20.0,143.17,143.09,18.0131]
[1724290754593,20.0,143.17,143.1,0.25098]
[1724290755767,20.0,143.17,143.1,1.64824687]
[1724290756788,20.0,143.17,143.1,0.25098]
[1724290757192,19.13656021,143.18,143.11,15.7045]
[1724290757512,19.13656021,143.18,143.12,1.64817534]
[1724290760014,7.29656021,143.18,143.12,1.64817534]
[1724290760182,18.8232,143.2,143.12,1.64817534]
[1724290760383,20.0,143.19,143.12,1.64817534]
[1724290761000,20.0,143.19,143.13,6.36]
[1724290761324,20.0,143.19,143.13,7.7570883]
[1724290762116,20.0,143.19,143.13,6.36]
[1724290762316,11.84,143.18,143.13,6.36]
[1724290767715,7.29755115,143.21,143.16,11.84]
[1724290768025,11.84,143.24,143.17,1.39674232]
[1724290768320,18.8203,143.26,143.18,7.79696423]
[1724290768523,26.11491175,143.26,143.18,7.79696423]
[1724290769022,26.11491175,143.26,143.19,15.0063]
[1724290769023,19.13461175,143.26,143.19,15.0063]
[1724290769331,11.84,143.26,143.2,1.39646679]
[1724290770725,11.84,143.26,143.19,15.13179]
[1724290773741,11.84,143.26,143.19,16.52825289]
[1724290773902,11.84,143.26,143.19,15.13179]
[1724290775025,11.84,143.26,143.19,16.52825445]
[1724290775424,11.84,143.26,143.19,15.13179]
[1724290775741,11.84,143.26,143.19,16.52825114]
[1724290777633,26.11309786,143.28,143.2,0.12549]
[1724290777927,20.0,143.27,143.2,0.12549]
[1724290778506,26.11309786,143.28,143.2,0.12549]
[1724290781510,6.9799,143.27,143.2,0.12549]
[1724290787233,26.11309786,143.28,143.2,0.12549]
[1724290787561,14.27309786,143.28,143.2,0.12549]
[1724290787719,11.84,143.29,143.2,13.36185158]
[1724290788036,20.0,143.28,143.21,0.12549]
[1724290788242,7.29962651,143.29,143.24,11.84]
[1724290788410,11.84,143.33,143.25,21.52134122]
[1724290788610,11.84,143.33,143.27,15.5126]
[1724290789549,18.817,143.33,143.27,15.5126]
[1724290790131,11.84,143.31,143.27,15.5126]
[1724290790329,11.84,143.31,143.25,20.12549]
[1724290790330,11.84,143.29,143.23,15.1157]
[1724290790516,11.84,143.29,143.24,20.0]
[1724290791106,11.84,143.29,143.23,15.1157]
[1724290799250,19.13027474,143.29,143.23,15.1157]
[1724290801367,11.84,143.27,143.22,6.0148]
[1724290801532,11.84,143.27,143.19,21.3797]
[1724290801856,11.84,143.27,143.2,20.25098]
[1724290803336,7.29027474,143.29,143.22,11.84]
[1724290803534,11.84,143.3,143.23,1.64702209]
[1724290805025,11.84,143.3,143.24,1.39604537]
[1724290806237,11.84,143.3,143.23,1.64699569]
[1724290808165,14.27584419,143.31,143.23,1.64699569]
[1724290808166,7.29794419,143.31,143.23,1.64702415]
[1724290808388,34.7181,143.32,143.24,1.39592611]
[1724290808682,26.978,143.31,143.25,0.12549]
[1724290808843,11.84,143.3,143.24,16.2402]
[1724290809261,18.8184,143.3,143.24,16.2402]
[1724290809773,11.84,143.28,143.23,0.12549]
[1724290810064,11.84,143.28,143.2,36.1082]
[1724290810263,11.84,143.28,143.21,45.25098]
[1724290810667,11.84,143.28,143.22,20.0]
[1724290811959,18.8184,143.3,143.23,1.39614012]
[1724290812671,18.8184,143.3,143.23,1.3961419]
[1724290813073,11.84,143.3,143.24,0.12549]
[1724290813373,26.9779,143.31,143.24,0.25098]
[1724290813560,20.0,143.31,143.24,0.25098]
[1724290813759,42.01750672,143.32,143.24,1.64690459]
[1724290814243,11.84,143.3,143.24,0.25098]
[1724290814443,11.84,143.3,143.23,0.25098]
[1724290824906,11.84,143.28,143.22,20.0]
[1724290825203,11.84,143.28,143.21,20.0]
[1724290829604,11.84,143.26,143.2,16.23369]
[1724290829904,11.84,143.26,143.2,16.1082]
[1724290831695,11.84,143.26,143.17,15.1084]
[1724290831905,11.84,143.26,143.18,0.12549]
[1724290833706,11.84,143.26,143.18,11.96549]
[1724290833909,11.84,143.26,143.2,0.25098]
[1724290834921,11.84,143.28,143.2,13.48734184]
[1724290835796,11.84,143.28,143.2,12.09098]
[1724290836921,11.84,143.26,143.17,15.1084]
[1724290837126,11.84,143.24,143.17,15.1084]
[1724290837632,11.84,143.24,143.18,20.0]
[1724290838317,11.84,143.24,143.19,0.25098]
[1724290838730,11.84,143.24,143.18,20.0]
[1724290839730,11.84,143.24,143.18,21.39665304]
[1724290842328,11.84,143.24,143.18,20.0]
[1724290843334,11.84,143.24,143.18,21.39665244]
[1724290843713,11.84,143.26,143.18,21.39665244]
[1724290844119,11.84,143.26,143.19,0.25098]
[1724290844915,11.84,143.24,143.18,20.0]
[1724290845536,11.84,143.22,143.16,20.0]
[1724290845752,11.84,143.22,143.13,16.0462]
[1724290845753,11.84,143.22,143.14,20.0]
[1724290846915,11.84,143.22,143.15,0.12549]
[1724290847110,11.84,143.22,143.15,0.25098]
[1724290847539,11.84,143.22,143.15,1.64782808]
[1724290847727,7.30275072,143.23,143.15,21.80031627]
[1724290847932,11.84,143.24,143.16,73.31248819]
[1724290848131,11.84,143.24,143.17,1.64760243]
[1724290848337,11.84,143.24,143.18,1.39655532]
[1724290848720,11.84,143.24,143.17,0.25098]
[1724290849719,11.84,143.24,143.17,1.64753401]
[1724290850032,11.84,143.24,143.17,0.25098]
[1724290851228,11.84,143.24,143.17,1.64753485]
[1724290851853,7.30211878,143.26,143.17,13.48753485]
[1724290852059,15.9845,143.27,143.17,13.48753485]
[1724290852060,27.8245,143.27,143.18,65.0]
[1724290852353,27.8245,143.27,143.19,13.4873393]
[1724290855428,27.8245,143.27,143.19,12.09098]
[1724290856138,27.8245,143.27,143.19,0.25098]
[1724290860966,27.8245,143.27,143.19,1.64738895]
[1724290862449,19.14132116,143.28,143.19,13.48738895]
[1724290862644,11.84,143.28,143.2,20.0]
[1724290862850,11.84,143.28,143.21,1.64725089]
[1724290870376,11.84,143.26,143.21,0.12549]
[1724290870587,11.84,143.26,143.19,20.0]
[1724290870762,11.84,143.26,143.2,0.12549]
[1724290871583,11.84,143.26,143.2,1.52187595]
[1724290872453,11.84,143.28,143.21,0.12549]
[1724290874687,11.84,143.28,143.21,7.90815587]
[1724290874853,11.84,143.28,143.22,0.12549]
[1724290875352,7.30052002,143.3,143.23,28.4491]
[1724290875578,11.84,143.32,143.24,1.5213864]
[1724290875773,11.84,143.32,143.24,1.6468764]
[1724290875977,19.13915748,143.32,143.24,0.25098]
[1724290876854,26.11665748,143.32,143.24,0.25098]
[1724290877188,11.84,143.3,143.23,16.6091]
[1724290878185,11.84,143.3,143.24,1.39603113]
[1724290879074,19.13915748,143.32,143.25,1.52147238]
[1724290879280,19.13915748,143.32,143.25,1.64696238]
[1724290879963,19.13915748,143.32,143.27,11.84]
[1724290879964,7.29915748,143.32,143.27,11.84]
[1724290880279,7.29915748,143.32,143.28,0.25098]
[1724290881586,7.29915748,143.32,143.28,0.12549]
[1724290881764,7.29915748,143.32,143.27,15.3505]
[1724290886108,19.13915748,143.32,143.27,15.3505]
[1724290886286,19.13915748,143.32,143.26,6.5178]
[1724290886982,11.84,143.3,143.24,35.5174]
[1724290891314,19.13915748,143.32,143.24,35.5174]
[1724290891511,19.13915748,143.32,143.25,0.25098]
[1724290894085,11.84,143.3,143.24,35.5174]
[1724290896922,19.13915748,143.32,143.24,35.5174]
[1724290897127,19.13915748,143.32,143.25,1.39592224]
[1724290899098,19.13915748,143.32,143.24,35.5174]
[1724290899625,19.13915748,143.32,143.25,1.64690385]
[1724290899829,19.13915748,143.32,143.25,0.25098]
[1724290901927,7.29915748,143.32,143.25,0.25098]
[1724290902102,33.898,143.34,143.25,45.25098]
[1724290902303,41.19640187,143.34,143.25,45.25098]
[1724290905706,26.11480187,143.34,143.26,1.39572087]
[1724290905929,26.11480187,143.34,143.27,0.12549]
[1724290906634,26.11480187,143.34,143.26,0.12549]
[1724290907074,11.84,143.32,143.26,0.12549]
[1724290907351,11.84,143.32,143.25,0.25098]
[1724290910233,11.84,143.32,143.24,35.5174]
[1724290910428,11.84,143.3,143.24,35.5174]
[1724290912951,7.299857,143.31,143.24,35.5174]
[1724290913249,11.84,143.32,143.24,35.5174]
[1724290913455,22.4466654,143.33,143.25,0.25098]
[1724290913640,34.2866654,143.33,143.25,0.25098]
[1724290914654,41.2635654,143.33,143.25,0.25098]
[1724290914822,11.84,143.31,143.24,35.5174]
[1724290922266,11.84,143.31,143.24,36.91337213]
[1724290922473,11.84,143.31,143.24,35.5174]
[1724290925062,19.13942685,143.31,143.24,35.5174]
[1724290926053,26.11732685,143.31,143.24,35.5174]
[1724290926363,11.84,143.29,143.24,15.5174]
[1724290928202,19.13942685,143.31,143.24,15.5174]
[1724290929105,26.11732685,143.31,143.24,15.5174]
[1724290933214,19.13942685,143.31,143.24,15.5174]
[1724290934628,26.11742685,143.31,143.24,15.5174]
[1724290937930,11.84,143.29,143.24,15.5174]
[1724290946458,11.84,143.29,143.22,6.155]
[1724290946658,45.12549,143.28,143.2,16.3694]
[1724290946846,11.84,143.24,143.2,16.3694]
[1724290955570,7.30087039,143.28,143.2,16.3694]
[1724290955860,7.30087039,143.28,143.21,13.23655384]
[1724290956042,18.8184,143.3,143.22,0.25098]
[1724290956241,26.11573074,143.3,143.22,6.35278]
[1724290956429,26.11573074,143.3,143.23,1.39614076]
[1724290957250,19.13733074,143.3,143.23,1.39614076]
[1724290958273,7.29733074,143.3,143.24,16.3029]
[1724290958568,11.84,143.32,143.25,1.3959629]
[1724290958749,20.0,143.31,143.25,1.3959629]
[1724290960167,20.0,143.31,143.24,16.42839]
[1724290960351,7.29601959,143.33,143.25,13.23585682]
[1724290960550,11.84,143.34,143.26,0.12549]
[1724290960854,7.29525984,143.33,143.26,0.25098]
[1724290962148,7.29525984,143.33,143.26,0.12549]
[1724290962353,11.84,143.32,143.24,16.3029]
[1724290962662,11.84,143.32,143.25,0.12549]
[1724290978194,18.8175,143.32,143.25,0.12549]
[1724290978521,21.9183,143.21,142.99,262.5301132]
[1724290978705,18.8276,143.11,143.1,13.05735892]
[1724290979075,6.9883,143.1,143.0,11.84]
[1724290979481,11.84,143.08,142.99,6.7301132]
[1724290979784,11.84,143.02,142.99,6.7301132]
[1724290979981,18.831,143.04,142.99,6.7301132]
[1724290980207,11.84,143.04,142.99,6.7301132]
[1724290980413,6.9917,143.03,142.99,0.4098132]
[1724290981219,6.9926,143.01,142.99,0.4098132]
[1724290981391,30.0,143.0,142.99,0.4098132]
[1724290981583,59.62,143.0,142.99,0.4098132]
[1724290981777,30.0,143.0,142.99,0.4098132]
[1724290990027,6.5515,142.99,142.87,385.9]
[1724290990221,6.9988,142.88,142.87,385.9]
[1724290990391,36.6188,142.88,142.87,385.9]
[1724290990592,56.6188,142.88,142.87,385.9]
[1724290991010,26.9988,142.88,142.87,385.9]
[1724290993133,17.4883,142.96,142.87,385.9]
[1724290993309,29.62,142.95,142.87,385.9]
[1724290993806,6.9975,142.91,142.87,385.9]
[1724290994641,36.6168,142.93,142.87,385.9]
[1724290994842,26.9969,142.92,142.87,385.9]
[1724290995610,6.9975,142.91,142.87,385.9]
[1724290997514,26.9969,142.92,142.87,385.9]
[1724290999445,34.29569942,142.92,142.87,385.9]
[1724291000228,26.9969,142.92,142.87,385.9]
[1724291002035,20.0,142.92,142.87,385.9]
[1724291004727,20.0,142.94,142.88,1.39972742]
[1724291005057,20.0,142.94,142.87,385.9]
[1724291005654,26.9961,142.94,142.87,385.9]
[1724291006058,26.9961,142.94,142.88,1.3996255]
[1724291006749,20.0,142.94,142.88,1.3996255]
[1724291007258,20.0,142.94,142.89,0.12549]
[1724291007563,20.0,142.95,142.88,0.25098]
[1724291008058,6.9959,142.94,142.88,0.12549]
[1724291008267,29.62,142.93,142.87,385.9]
[1724291008768,36.6164,142.93,142.87,385.9]
[1724291009150,29.62,142.93,142.87,385.9]
[1724291009653,6.996,142.94,142.87,385.9]
[1724291010239,26.9955,142.95,142.87,385.9]
[1724291010447,20.0,142.95,142.88,1.39953406]
[1724291012771,20.0,142.95,142.86,21.52494529]
[1724291013068,20.0,142.95,142.87,45.12549]
[1724291013268,20.0,142.95,142.88,0.12549]
[1724291016351,7.29889017,142.96,142.88,1.52484898]
[1724291016854,7.29889017,142.96,142.89,0.12549]
[1724291017182,6.994,142.98,142.89,1.52478576]
[1724291017490,6.994,142.98,142.9,0.12549]
[1724291017856,14.2922988,142.98,142.9,0.12549]
[1724291018062,14.2922988,142.98,142.91,6.3627]
[1724291018576,7.2982988,142.98,142.92,1.39923144]
[1724291019453,7.2982988,142.98,142.92,1.39908555]
[1724291020682,7.29624739,143.0,142.93,1.39907385]
[1724291020847,7.29624739,143.0,142.92,0.12549]
[1724291021052,7.29624739,143.0,142.92,1.64990939]
[1724291021557,6.9921,143.02,142.92,1.64990939]
[1724291021758,7.29586243,143.01,142.92,21.64990939]
[1724291022173,7.29586243,143.01,142.92,20.25098]
[1724291022351,7.29586243,143.01,142.93,1.39892892]
[1724291022878,7.29586243,143.01,142.92,20.25098]
[1724291028687,14.28836243,143.01,142.92,20.25098]
[1724291028883,43.90836243,143.01,142.92,20.25098]
[1724291029258,43.87931029,143.01,142.92,20.25098]
[1724291029986,6.9931,143.0,142.92,20.25098]
[1724291030669,6.9931,143.0,142.92,0.25098]
[1724291030869,29.62,142.99,142.91,6.3627]
[1724291031076,36.6136,142.99,142.91,6.3627]
[1724291034264,6.9931,143.0,142.91,6.3627]
[1724291034592,6.9931,143.0,142.92,0.12549]
[1724291034774,6.9931,143.0,142.92,1.52459015]
[1724291035083,36.6125,143.01,142.92,0.12549]
[1724291035283,65.0,143.0,142.92,0.12549]
[1724291035583,71.9931,143.0,142.92,1.52459004]
[1724291036291,71.9931,143.0,142.92,0.12549]
[1724291036467,71.9931,143.0,142.92,1.52459182]
[1724291036672,6.9935,142.99,142.92,1.52459182]
[1724291040195,6.9935,142.99,142.92,0.12549]
[1724291040573,71.9931,143.0,142.92,0.12549]
[1724291041294,20.0,143.0,142.92,1.52459055]
[1724291041594,20.0,143.01,142.93,0.12549]
[1724291042474,31.85,143.01,142.93,11.85]
[1724291044496,31.85,143.01,142.94,1.39892407]
[1724291044675,31.85,143.01,142.95,16.3017]
[1724291046396,11.85,143.01,142.95,16.3017]
[1724291050508,6.9925,143.02,142.95,28.1517]
[1724291050683,18.8425,143.02,142.95,16.3017]
[1724291051898,11.85,143.0,142.95,16.3017]
[1724291062797,18.8431,143.0,142.95,16.3017]
[1724291064222,11.85,143.0,142.95,16.3017]
[1724291065911,18.842,143.02,142.95,16.3017]
[1724291066121,18.842,143.02,142.95,17.70056395]
[1724291066601,18.842,143.02,142.95,16.3017]
[1724291067535,6.9916,143.03,142.96,7.91966109]
[1724291067831,20.0,143.02,142.96,7.91966109]
[1724291070923,20.0,143.02,142.92,22.0653]
[1724291070924,11.85,142.97,142.92,22.0653]
[1724291073221,18.8446,142.97,142.92,22.0653]
[1724291073427,11.85,142.97,142.92,22.0653]
[1724291080241,11.85,142.95,142.89,6.2197]
[1724291095155,6.9945,142.97,142.9,1.39935069]
[1724291095340,18.8445,142.97,142.89,6.2197]
[1724291095655,6.9951,142.96,142.89,6.2197]
[1724291096223,11.85,142.95,142.89,6.2197]
[1724291097947,18.8455,142.95,142.89,6.2197]
[1724291100553,11.85,142.95,142.89,6.2197]
[1724291101747,6.9949,142.96,142.89,6.2197]
[1724291101953,11.85,142.95,142.89,6.2197]
[1724291102168,15.2165,142.98,142.89,6.2197]
[1724291102336,11.85,142.95,142.89,6.2197]
[1724291103451,22.71346045,143.26,142.9,1.39933739]
[1724291103452,23.77128741,143.02,142.9,1.39933739]
[1724291103652,6.993,143.0,142.92,11.85]
[1724291103870,11.85,143.01,142.94,33.9808]
[1724291104037,6.9921,143.02,142.95,1.39888918]
[1724291104354,6.9925,143.01,142.95,1.39888918]
[1724291104653,6.9925,143.01,142.94,33.9808]
[1724291104654,6.9921,143.02,142.94,33.9808]
[1724291104828,6.9927,143.01,142.94,22.1308]
[1724291105033,6.9931,143.0,142.94,22.1308]
[1724291105730,18.8431,143.0,142.94,22.1308]
[1724291107035,11.85,142.98,142.94,6.2505]
[1724291111059,11.85,143.0,142.94,6.2505]
[1724291115234,18.843,143.0,142.94,6.2505]
[1724291119542,18.842,143.02,142.95,1.39900618]
[1724291119840,18.842,143.02,142.96,15.9565]
[1724291120046,15.4849,143.06,142.97,13.24873712]
[1724291120246,11.85,143.05,142.96,15.9565]
[1724291120446,6.9914,143.04,142.96,15.9565]
[1724291120741,15.4849,143.06,142.96,15.9565]
[1724291120742,11.85,143.01,142.96,15.9565]
[1724291121450,18.8426,143.01,142.96,15.9565]
[1724291121645,11.85,143.01,142.96,15.9565]
[1724291127188,11.85,143.03,142.97,1.39884883]
[1724291127679,11.85,143.03,142.96,15.9565]
[1724291127880,11.85,143.03,142.97,1.39860269]
[1724291128656,11.85,143.03,142.96,15.9565]
[1724291130891,18.8396,143.07,142.98,6.3807]
[1724291131064,26.9901,143.06,142.98,6.3807]
[1724291131392,11.85,143.05,142.98,6.3807]
[1724291133569,31.85,143.06,142.98,6.3807]
[1724291133754,38.84,143.06,142.98,6.3807]
[1724291134564,23.06255002,143.1,143.0,11.85]
[1724291134893,11.85,143.09,143.0,11.85]
[1724291135982,6.9891,143.08,143.0,11.85]